fUSD/lending_fUSD_20260208
["ID","MTS","AMOUNT","RATE_DAILY","PERIOD"]
[404801493,1770577839417,-150.0,0.00040718,7]
[404801494,1770577839427,-22500.0,0.0004075,120]
[404801495,1770577839436,-150.0,0.00040782,7]
[404801496,1770577839445,-150.0,0.00040782,7]
[404801497,1770577839454,-151.0,0.000408,120]
[404801498,1770577839464,-150.0,0.00040874,7]
[404801499,1770577839473,-150.0,0.00040874,7]
[404801500,1770577839482,-150.0,0.00040887,7]
[404801501,1770577839492,-150.0,0.0004094,7]
[404801502,1770577839502,-150.0,0.0004094,7]
[404801503,1770577839511,-150.0,0.0004094,7]
[404801504,1770577839520,-150.0,0.0004094,7]
[404801505,1770577839529,-150.0,0.00040992,7]
[404801506,1770577839539,-153.0,0.00041,120]
[404801507,1770577839548,-161.265144,0.00041068,22]
[404801508,1770577839557,-217.8175496,0.00041093,15]
[404801509,1770577839566,-363.77058182,0.00041095,120]
[404801510,1770577839578,-150.0,0.00041098,30]
[404801511,1770577839588,-150.0,0.00041098,30]
[404801512,1770577839597,-150.0,0.00041135,30]
[404801513,1770577839606,-150.0,0.00041135,30]
[404801514,1770577839616,-150.0,0.00041161,30]
[404801515,1770577839625,-150.0,0.00041203,30]
[404801516,1770577839635,-150.0,0.00041216,30]
[404801517,1770577839645,-196.0,0.0004123,11]
[404801518,1770577839654,-150.0,0.00041308,30]
[404801519,1770577839664,-150.0,0.00041308,30]
[404801520,1770577839678,-150.0,0.00041308,30]
[404801521,1770577839687,-150.0,0.00041382,30]
[404801522,1770577839697,-150.0,0.00041395,30]
[404801523,1770577839706,-150.0,0.00041395,30]
[404801524,1770577839717,-150.0,0.00041414,30]
[404801525,1770577839727,-150.0,0.00041414,30]
[404801526,1770577839737,-150.0,0.00041493,30]
[404801527,1770577839746,-150.0,0.00041519,30]
[404801528,1770577839756,-217.8175496,0.00041529,15]
[404801529,1770577839766,-151.0,0.000416,120]
[404801530,1770577839776,-150.0,0.00041603,30]
[404801531,1770577839785,-150.0,0.00041625,30]
[404801532,1770577839795,-150.0,0.00041656,30]
[404801533,1770577839804,-150.0,0.00041656,30]
[404801534,1770577839814,-150.0,0.00041677,30]
[404801535,1770577839823,-150.0,0.0004173,30]
[404801536,1770577839832,-150.0,0.0004173,30]
[404801537,1770577839841,-164.0,0.00041748,11]
[404801538,1770577839851,-150.0,0.00041769,30]
[404801539,1770577839861,-6321.69,0.00041814,120]
[404801540,1770577839871,-150.0,0.00041825,30]
[404801541,1770577839880,-150.0,0.00041835,30]
[404801542,1770577839890,-150.0,0.00041916,30]
[404801543,1770577839901,-150.0,0.00041916,30]
[404801544,1770577839910,-150.0,0.00041941,30]
[404801545,1770577839920,-217.8175496,0.00041965,15]
[404801546,1770577839929,-800.0,0.00042,15]
[404801547,1770577839938,-800.0,0.00042,15]
[404801548,1770577839947,-800.0,0.00042,15]
[404801549,1770577839956,-800.0,0.00042,15]
[404801550,1770577839965,-800.0,0.00042,15]
[404801551,1770577839974,-829.56170862,0.00042,15]
[404801552,1770577839983,-213.75126474,0.00042,2]
[404801553,1770577839992,-153.0,0.00042,120]
[404801554,1770577840001,-150.0,0.00042046,30]
[404801555,1770577840010,-150.0,0.00042046,30]
[404801556,1770577840019,-150.0,0.00042046,30]
[404801557,1770577840029,-150.0,0.00042046,30]
[404801558,1770577840038,-150.0,0.00042046,30]
[404801559,1770577840047,-150.0,0.00042046,30]
[404801560,1770577840056,-150.0,0.00042046,30]
[404801561,1770577840064,-150.0,0.00042046,30]
[404801562,1770577840073,-2827.0,0.00042068,16]
[404801563,1770577840082,-509.0,0.00042093,13]
[404801564,1770577840091,-150.0,0.00042151,30]
[404801565,1770577840100,-150.0,0.00042176,30]
[404801566,1770577840109,-150.0,0.00042176,30]
[404801567,1770577840118,-150.0,0.00042257,30]
[404801568,1770577840127,-150.0,0.00042267,30]
[404801571,1770577840136,-200.0,0.00042293,2]
[404801573,1770577840145,-6058.88,0.000423,2]
[404801574,1770577840155,-150.0,0.00042323,30]
[404801575,1770577840163,-150.0,0.00042362,30]
[404801576,1770577840172,-150.0,0.00042362,30]
[404801577,1770577840181,-151.0,0.000424,120]
[404801579,1770577840190,-217.8175496,0.00042401,15]
[404801581,1770577840199,-150.0,0.00042415,30]
[404801583,1770577840208,-150.0,0.00042426,120]
[404801585,1770577840218,-150.0,0.00042437,30]
[404801586,1770577840227,-150.0,0.00042437,30]
[404801587,1770577840236,-169.75030081,0.00042438,30]
[404801588,1770577840245,-20000.0,0.00042466,120]
[404801589,1770577840254,-150.0,0.00042468,30]
[404801590,1770577840263,-150.0,0.00042489,30]
[404801591,1770577840273,-3484.0,0.0004252,2]
[404801592,1770577840283,-616.0,0.0004252,2]
[404801593,1770577840293,-187.825,0.0004252,2]
[404801594,1770577840303,-3255.0,0.0004252,2]
[404801595,1770577840312,-6585.0,0.0004252,2]
[404801596,1770577840322,-150.0,0.00042573,30]
[404801597,1770577840332,-150.0,0.00042599,30]
[404801598,1770577840342,-539.29236495,0.00042615,60]
[404801599,1770577840351,-150.0,0.00042678,30]
[404801600,1770577840361,-150.0,0.00042678,30]
[404801601,1770577840371,-150.0,0.00042697,30]
[404801602,1770577840380,-150.0,0.00042697,30]
[404801603,1770577840389,-2000.0,0.000427,2]
[404801604,1770577840399,-150.0,0.0004271,30]
[404801605,1770577840410,-232.0,0.00042713,2]
[404801606,1770577840419,-428.0,0.00042713,2]
[404801607,1770577840428,-428.0,0.00042713,2]
[404801608,1770577840438,-275.0,0.00042713,2]
[404801609,1770577840449,-380.0,0.00042713,2]
[404801610,1770577840459,-800.0,0.0004274,7]
[404801611,1770577840469,-150.0,0.00042784,30]
[404801612,1770577840478,-150.0,0.00042784,30]
[404801613,1770577840487,-150.0,0.00042784,30]
[404801614,1770577840497,-217.8175496,0.00042837,15]
[404801615,1770577840506,-49944.0,0.00042839,30]
[404801616,1770577840516,-150.0,0.00042876,30]
[404801617,1770577840525,-150.0,0.00042889,30]
[404801618,1770577840535,-770.56421975,0.000429,28]
[404801619,1770577840544,-825.55562903,0.000429,120]
[404801620,1770577840554,-825.55562891,0.000429,120]
[404801621,1770577840563,-825.55562891,0.000429,120]
[404801622,1770577840573,-825.55562891,0.000429,120]
[404801623,1770577840582,-825.55562891,0.000429,120]
[404801624,1770577840592,-825.55562891,0.000429,120]
[404801625,1770577840601,-262.2592753,0.000429,15]
[404801627,1770577840611,-169.75030081,0.00042904,30]
[404801629,1770577840620,-4555.29193256,0.00042909,7]
[404801631,1770577840811,-150.0,0.00042931,30]
[404801632,1770577840822,-164.0,0.00042953,16]
[404801633,1770577840832,-150.0,0.00042957,30]
[404801634,1770577840841,-150.0,0.00042957,30]
[404801635,1770577840850,-150.0,0.00042973,10]
[404801636,1770577840860,-300.0,0.00042973,5]
[404801637,1770577840869,-150.0,0.00042994,30]
[404801638,1770577840878,-150.0,0.00042994,30]
[404801639,1770577840887,-48951.23762148,0.00043,2]
[404801640,1770577840896,-212.0,0.00043,30]
[404801641,1770577840906,-153.0,0.00043,120]
[404801642,1770577840915,-770.5642197,0.00043078,28]
[404801643,1770577840924,-150.0,0.000431,30]
[404801644,1770577840933,-151.0,0.000431,120]
[404801645,1770577840943,-150.0,0.00043153,30]
[404801646,1770577840953,-150.0,0.00043153,30]
[404801647,1770577840962,-150.0,0.00043153,30]
[404801648,1770577840971,-150.0,0.00043153,30]
[404801649,1770577840981,-150.0,0.00043205,30]
[404801650,1770577840990,-2827.0,0.00043206,16]
[404801651,1770577840999,-840.0,0.00043211,16]
[404801652,1770577841009,-150.0,0.00043218,30]
[404801653,1770577841019,-150.0,0.00043218,30]
[404801654,1770577841028,-770.5642197,0.00043256,28]
[404801655,1770577841037,-217.8175496,0.00043273,15]
[404801656,1770577841047,-49944.0,0.00043281,30]
[404801657,1770577841055,-150.0,0.00043311,30]
[404801658,1770577841065,-150.0,0.00043311,30]
[404801659,1770577841074,-109201.73505988,0.0004333,4]
[404801660,1770577841084,-636.0,0.00043356,120]
[404801661,1770577841094,-169.75030081,0.0004337,30]
[404801662,1770577841103,-150.0,0.00043374,30]
[404801663,1770577841112,-2000.0,0.000434,2]
[404801664,1770577841122,-152.52520712,0.000434,120]
[404801665,1770577841132,-150.0,0.00043416,30]
[404801666,1770577841141,-150.0,0.00043429,30]
[404801667,1770577841151,-770.5642197,0.00043434,28]
[404801668,1770577841159,-150.0,0.00043478,30]
[404801669,1770577841168,-150.0,0.00043478,30]
[404801670,1770577841178,-49184.09,0.000435,120]
[404801671,1770577841187,-200.461407,0.000435,25]
[404801672,1770577841196,-251.3634381,0.00043521,10]
[404801673,1770577841206,-300.51862815,0.00043521,5]
[404801674,1770577841216,-150.0,0.00043521,30]
[404801675,1770577841225,-150.0,0.00043521,30]
[404801676,1770577841234,-827.0,0.00043531,16]
[404801677,1770577841243,-2827.0,0.00043531,16]
[404801678,1770577841252,-164.0,0.00043536,16]
[404801679,1770577841262,-200.0,0.00043552,2]
[404801680,1770577841271,-150.0,0.00043595,30]
[404801681,1770577841280,-770.5642197,0.00043611,28]
[404801682,1770577841289,-150.0,0.00043627,30]
[404801683,1770577841298,-150.0,0.00043627,30]
[404801684,1770577841307,-25000.0,0.00043633,15]
[404801685,1770577841316,-25000.0,0.00043641,15]
[404801686,1770577841325,-25000.0,0.0004365,15]
[404801687,1770577841335,-150.0,0.00043656,30]
[404801688,1770577841344,-1055.36341632,0.00043656,30]
[404801689,1770577841353,-150.0,0.00043656,30]
[404801690,1770577841362,-3240.89898856,0.00043656,30]
[404801691,1770577841372,-150.0,0.00043656,30]
[404801692,1770577841381,-748.98175906,0.00043656,30]
[404801693,1770577841390,-25000.0,0.00043659,15]
[404801694,1770577841399,-25000.0,0.00043668,15]
[404801695,1770577841408,-25000.0,0.00043677,15]
[404801696,1770577841418,-25000.0,0.00043685,15]
[404801697,1770577841427,-25000.0,0.00043694,15]
[404801698,1770577841436,-25000.0,0.00043703,15]
[404801699,1770577841446,-150.0,0.00043706,30]
[404801700,1770577841455,-217.8175496,0.00043709,15]
[404801701,1770577841464,-25000.0,0.00043712,15]
[404801702,1770577841473,-151.0,0.00043719,120]
[404801703,1770577841482,-25000.0,0.00043721,15]
[404801704,1770577841491,-49944.0,0.00043723,30]
[404801705,1770577841500,-25000.0,0.00043729,15]
[404801706,1770577841510,-150.0,0.00043732,30]
[404801707,1770577841519,-188.33295432,0.00043735,120]
[404801708,1770577841528,-25000.0,0.00043738,15]
[404801709,1770577841537,-150.0,0.00043738,30]
[404801710,1770577841546,-150.0,0.00043738,30]
[404801711,1770577841555,-162.38812646,0.00043739,120]
[404801712,1770577841563,-25000.0,0.00043747,15]
[404801713,1770577841572,-25000.0,0.00043756,15]
[404801714,1770577841581,-25000.0,0.00043765,15]
[404801715,1770577841590,-25000.0,0.00043773,15]
[404801716,1770577841599,-25000.0,0.00043782,15]
[404801717,1770577841608,-200.0,0.00043788,120]
[404801718,1770577841617,-770.5642197,0.00043789,28]
[404801719,1770577841627,-25000.0,0.00043791,15]
[404801720,1770577841640,-25000.0,0.000438,15]
[404801721,1770577841649,-150.0,0.000438,70]
[404801722,1770577841659,-6058.88,0.000438,14]
[404801723,1770577841670,-167.03,0.000438,14]
[404801724,1770577841681,-170.9,0.000438,14]
[404801725,1770577841691,-25000.0,0.00043809,15]
[404801726,1770577841701,-150.0,0.00043816,30]
[404801727,1770577841711,-25000.0,0.00043817,15]
[404801728,1770577841721,-184.95855719,0.00043825,7]
[404801729,1770577841731,-25000.0,0.00043826,15]
[404801730,1770577841742,-151.0,0.00043832,120]
[404801731,1770577841751,-525.92768358,0.00043835,120]
[404801732,1770577841761,-151.0,0.00043835,60]
[404801733,1770577841770,-611.16201069,0.00043835,120]
[404801734,1770577841779,-281.30253485,0.00043835,120]
[404801735,1770577841789,-500.0,0.00043835,120]
[404801736,1770577841799,-519.68626143,0.00043835,120]
[404801737,1770577841808,-500.0,0.00043835,120]
[404801738,1770577841817,-500.0,0.00043835,120]
[404801739,1770577841826,-500.0,0.00043835,120]
[404801740,1770577841835,-500.0,0.00043835,120]
[404801741,1770577841844,-500.0,0.00043835,120]
[404801742,1770577841853,-500.0,0.00043835,120]
[404801743,1770577841862,-500.0,0.00043835,120]
[404801744,1770577841870,-268.12589968,0.00043835,120]
[404801745,1770577841879,-517.31897049,0.00043835,120]
[404801746,1770577841888,-500.0,0.00043835,120]
[404801747,1770577841897,-500.0,0.00043835,120]
[404801748,1770577841905,-500.0,0.00043835,120]
[404801749,1770577841914,-607.32731473,0.00043835,120]
[404801750,1770577841923,-500.35226602,0.00043835,120]
[404801751,1770577841932,-25000.0,0.00043835,15]
[404801752,1770577841941,-508.99736314,0.00043835,120]
[404801753,1770577841951,-500.0,0.00043835,30]
[404801754,1770577841960,-500.0,0.00043835,30]
[404801755,1770577841970,-500.0,0.00043835,30]
[404801756,1770577841979,-500.0,0.00043835,30]
[404801757,1770577841988,-500.0,0.00043835,30]
[404801758,1770577841997,-500.0,0.00043835,30]
[404801759,1770577842006,-500.0,0.00043835,30]
[404801760,1770577842019,-500.0,0.00043835,30]
[404801761,1770577842028,-415.98842539,0.00043835,30]
[404801762,1770577842037,-169.58173965,0.00043835,120]
[404801763,1770577842046,-500.0,0.00043835,120]
[404801764,1770577842056,-500.0,0.00043835,120]
[404801765,1770577842065,-500.0,0.00043835,120]
[404801766,1770577842074,-500.0,0.00043835,120]
[404801767,1770577842083,-500.0,0.00043835,120]
[404801768,1770577842093,-500.0,0.00043835,120]
[404801769,1770577842102,-500.0,0.00043835,120]
[404801770,1770577842111,-500.0,0.00043835,120]
[404801771,1770577842120,-500.0,0.00043835,120]
[404801772,1770577842130,-500.0,0.00043835,120]
[404801773,1770577842139,-500.0,0.00043835,120]
[404801774,1770577842148,-500.0,0.00043835,120]
[404801775,1770577842157,-570.69313118,0.00043835,120]
[404801776,1770577842167,-445.50898314,0.00043835,120]
[404801777,1770577842176,-500.0,0.00043835,120]
[404801778,1770577842186,-500.0,0.00043835,120]
[404801779,1770577842196,-500.0,0.00043835,120]
[404801780,1770577842206,-500.0,0.00043835,120]
[404801781,1770577842219,-500.0,0.00043835,120]
[404801782,1770577842229,-152.62264696,0.00043835,120]
[404801783,1770577842238,-500.0,0.00043835,120]
[404801784,1770577842248,-500.0,0.00043835,120]
[404801785,1770577842257,-271.21542309,0.00043835,120]
[404801786,1770577842266,-500.0,0.00043835,120]
[404801787,1770577842275,-500.0,0.00043835,120]
[404801788,1770577842285,-500.0,0.00043835,120]
[404801789,1770577842294,-206.10101478,0.00043835,120]
[404801790,1770577842303,-480.05357723,0.00043835,120]
[404801791,1770577842312,-500.0,0.00043835,120]
[404801792,1770577842322,-500.0,0.00043835,120]
[404801793,1770577842331,-158.45697578,0.00043835,120]
[404801794,1770577842340,-500.0,0.00043835,120]
[404801795,1770577842350,-500.0,0.00043835,120]
[404801796,1770577842360,-500.0,0.00043835,120]
[404801797,1770577842369,-500.0,0.00043835,120]
[404801798,1770577842379,-515.85167841,0.00043835,120]
[404801799,1770577842388,-312.72750733,0.00043835,120]
[404801800,1770577842400,-563.68083292,0.00043835,120]
[404801801,1770577842410,-500.0,0.00043835,120]
[404801802,1770577842419,-500.0,0.00043835,120]
[404801803,1770577842428,-595.22942525,0.00043835,120]
[404801804,1770577842437,-500.0,0.00043835,120]
[404801805,1770577842448,-156.5233455,0.00043835,120]
[404801806,1770577842457,-534.53626634,0.00043835,120]
[404801807,1770577842466,-500.0,0.00043835,120]
[404801808,1770577842476,-543.95983401,0.00043835,120]
[404801809,1770577842486,-500.0,0.00043835,120]
[404801810,1770577842495,-162.26818723,0.00043835,120]
[404801811,1770577842504,-500.0,0.00043835,120]
[404801812,1770577842514,-500.0,0.00043835,120]
[404801813,1770577842523,-528.20936949,0.00043835,120]
[404801814,1770577842532,-532.96466098,0.00043835,120]
[404801815,1770577842542,-517.63941007,0.00043835,120]
[404801816,1770577842551,-519.81214847,0.00043835,120]
[404801817,1770577842561,-185.89365851,0.00043835,120]
[404801818,1770577842570,-540.80178604,0.00043835,120]
[404801819,1770577842580,-300.03200423,0.00043835,120]
[404801820,1770577842589,-500.0,0.00043835,120]
[404801821,1770577842602,-540.26503257,0.00043835,120]
[404801822,1770577842611,-536.01789972,0.00043835,120]
[404801823,1770577842620,-505.01398457,0.00043835,120]
[404801824,1770577842630,-514.38128336,0.00043835,120]
[404801825,1770577842640,-571.12362828,0.00043835,120]
[404801826,1770577842649,-525.66014499,0.00043835,120]
[404801827,1770577842658,-527.34222378,0.00043835,120]
[404801828,1770577842669,-424.57,0.00043835,2]
[404801829,1770577842680,-424.57,0.00043835,2]
[404801830,1770577842689,-424.57,0.00043835,2]
[404801831,1770577842698,-424.57,0.00043835,2]
[404801832,1770577842708,-424.57,0.00043835,2]
[404801833,1770577842718,-424.57,0.00043835,2]
[404801834,1770577842728,-424.57,0.00043835,2]
[404801835,1770577842737,-424.57,0.00043835,2]
[404801836,1770577842747,-424.57,0.00043835,2]
[404801837,1770577842756,-424.57,0.00043835,2]
[404801838,1770577842766,-424.57,0.00043835,2]
[404801839,1770577842776,-424.57,0.00043835,2]
[404801840,1770577842786,-424.57,0.00043835,2]
[404801841,1770577842798,-424.57,0.00043835,2]
[404801842,1770577842808,-424.57,0.00043835,2]
[404801843,1770577842818,-424.57,0.00043835,2]
[404801844,1770577842828,-509.21146669,0.00043835,120]
[404801845,1770577842837,-519.27565661,0.00043835,120]
[404801846,1770577842847,-167.5810362,0.00043835,120]
[404801847,1770577842856,-536.49627546,0.00043835,120]
[404801848,1770577842865,-262.3796911,0.00043835,120]
[404801849,1770577842874,-543.87271723,0.00043835,120]
[404801850,1770577842884,-500.0,0.00043835,120]
[404801851,1770577842893,-500.0,0.00043835,120]
[404801852,1770577842902,-500.0,0.00043835,120]
[404801853,1770577842911,-500.0,0.00043835,120]
[404801854,1770577842920,-500.0,0.00043835,120]
[404801855,1770577842930,-500.0,0.00043835,120]
[404801856,1770577842939,-518.89146978,0.00043835,120]
[404801857,1770577842949,-500.0,0.00043835,120]
[404801858,1770577842958,-344.3213691,0.00043835,120]
[404801859,1770577842967,-500.0,0.00043835,120]
[404801860,1770577842976,-500.0,0.00043835,120]
[404801861,1770577842987,-526.9293571,0.00043835,120]
[404801862,1770577842996,-500.0,0.00043835,120]
[404801864,1770577843005,-500.0,0.00043835,120]
[404801865,1770577843014,-500.0,0.00043835,120]
[404801866,1770577843023,-500.0,0.00043835,120]
[404801867,1770577843032,-500.0,0.00043835,120]
[404801868,1770577843042,-500.0,0.00043835,120]
[404801869,1770577843051,-500.0,0.00043835,120]
[404801870,1770577843060,-500.0,0.00043835,120]
[404801871,1770577843070,-500.0,0.00043835,120]
[404801872,1770577843079,-568.94429835,0.00043835,120]
[404801873,1770577843088,-225.617743,0.00043835,120]
[404801874,1770577843097,-500.0,0.00043835,120]
[404801875,1770577843107,-532.55254851,0.00043835,120]
[404801876,1770577843116,-323.93528176,0.00043835,120]
[404801877,1770577843125,-434.30824802,0.00043835,120]
[404801878,1770577843134,-521.94981696,0.00043835,120]
[404801879,1770577843143,-215.77660446,0.00043835,120]
[404801880,1770577843152,-628.65026612,0.00043835,120]
[404801881,1770577843162,-500.0,0.00043835,120]
[404801882,1770577843171,-235.90586069,0.00043835,120]
[404801883,1770577843180,-500.0,0.00043835,120]
[404801884,1770577843189,-500.0,0.00043835,120]
[404801885,1770577843200,-547.50893996,0.00043835,120]
[404801886,1770577843209,-500.0,0.00043835,120]
[404801887,1770577843218,-500.0,0.00043835,120]
[404801888,1770577843228,-500.0,0.00043835,120]
[404801889,1770577843237,-500.0,0.00043835,120]
[404801890,1770577843246,-418.23911494,0.00043835,120]
[404801891,1770577843255,-500.0,0.00043835,120]
[404801892,1770577843264,-500.0,0.00043835,120]
[404801893,1770577843273,-500.0,0.00043835,120]
[404801894,1770577843283,-500.0,0.00043835,120]
[404801895,1770577843293,-500.0,0.00043835,120]
[404801896,1770577843302,-500.0,0.00043835,120]
[404801897,1770577843311,-500.0,0.00043835,120]
[404801898,1770577843320,-500.0,0.00043835,120]
[404801899,1770577843329,-500.0,0.00043835,120]
[404801900,1770577843339,-500.0,0.00043835,120]
[404801901,1770577843348,-500.0,0.00043835,120]
[404801902,1770577843357,-500.0,0.00043835,120]
[404801903,1770577843366,-500.0,0.00043835,120]
[404801904,1770577843375,-500.0,0.00043835,120]
[404801905,1770577843384,-500.0,0.00043835,120]
[404801906,1770577843394,-500.0,0.00043835,120]
[404801907,1770577843404,-534.32094013,0.00043835,120]
[404801908,1770577843413,-177.2134038,0.00043835,120]
[404801909,1770577843422,-500.0,0.00043835,120]
[404801910,1770577843431,-500.0,0.00043835,120]
[404801911,1770577843441,-500.0,0.00043835,120]
[404801912,1770577843451,-500.0,0.00043835,120]
[404801913,1770577843460,-547.98813922,0.00043835,120]
[404801914,1770577843470,-500.0,0.00043835,120]
[404801915,1770577843479,-500.0,0.00043835,120]
[404801916,1770577843488,-500.0,0.00043835,120]
[404801917,1770577843498,-500.0,0.00043835,120]
[404801918,1770577843508,-500.0,0.00043835,120]
[404801919,1770577843517,-500.0,0.00043835,120]
[404801920,1770577843527,-500.0,0.00043835,120]
[404801921,1770577843536,-500.0,0.00043835,120]
[404801922,1770577843545,-500.0,0.00043835,120]
[404801923,1770577843554,-285.07746528,0.00043835,120]
[404801924,1770577843564,-500.0,0.00043835,120]
[404801925,1770577843574,-500.0,0.00043835,120]
[404801926,1770577843583,-500.0,0.00043835,120]
[404801927,1770577843593,-500.0,0.00043835,120]
[404801928,1770577843602,-500.0,0.00043835,120]
[404801929,1770577843611,-500.0,0.00043835,120]
[404801930,1770577843621,-500.0,0.00043835,120]
[404801931,1770577843632,-500.0,0.00043835,120]
[404801932,1770577843642,-501.41218392,0.00043835,120]
[404801933,1770577843651,-195.62835296,0.00043835,120]
[404801934,1770577843661,-181.61569994,0.00043835,120]
[404801935,1770577843673,-500.0,0.00043835,120]
[404801936,1770577843683,-430.8793141,0.00043835,120]
[404801937,1770577843692,-500.0,0.00043835,120]
[404801938,1770577843703,-500.0,0.00043835,120]
[404801939,1770577843713,-536.77866788,0.00043835,120]
[404801940,1770577843723,-560.21790544,0.00043835,120]
[404801941,1770577843732,-364.84994601,0.00043835,120]
[404801942,1770577843742,-500.0,0.00043835,120]
[404801943,1770577843751,-500.0,0.00043835,120]
[404801944,1770577843761,-500.0,0.00043835,120]
[404801945,1770577843771,-517.76915216,0.00043835,120]
[404801946,1770577843780,-500.0,0.00043835,120]
[404801947,1770577843790,-500.0,0.00043835,120]
[404801948,1770577843799,-500.0,0.00043835,120]
[404801949,1770577843808,-500.0,0.00043835,120]
[404801950,1770577843817,-500.0,0.00043835,120]
[404801951,1770577843827,-525.10521056,0.00043835,120]
[404801952,1770577843836,-500.0,0.00043835,120]
[404801953,1770577843846,-500.0,0.00043835,120]
[404801954,1770577843855,-500.0,0.00043835,120]
[404801955,1770577843865,-500.0,0.00043835,120]
[404801956,1770577843874,-500.0,0.00043835,120]
[404801957,1770577843883,-500.0,0.00043835,120]
[404801958,1770577843893,-640.89723159,0.00043835,120]
[404801960,1770577843902,-500.0,0.00043835,120]
[404801962,1770577843911,-500.0,0.00043835,120]
[404801964,1770577843919,-500.0,0.00043835,120]
[404801965,1770577843927,-500.0,0.00043835,120]
[404801967,1770577843936,-500.0,0.00043835,120]
[404801969,1770577843945,-500.0,0.00043835,120]
[404801970,1770577843954,-500.0,0.00043835,120]
[404801971,1770577843962,-500.0,0.00043835,120]
[404801972,1770577843970,-500.0,0.00043835,120]
[404801973,1770577843978,-558.57567264,0.00043835,120]
[404801975,1770577843987,-500.0,0.00043835,120]
[404801976,1770577843996,-500.0,0.00043835,120]
[404801977,1770577844004,-500.0,0.00043835,120]
[404801978,1770577844012,-500.0,0.00043835,120]
[404801979,1770577844020,-500.0,0.00043835,120]
[404801980,1770577844029,-500.0,0.00043835,120]
[404801981,1770577844038,-500.07778973,0.00043835,120]
[404801982,1770577844047,-500.0,0.00043835,120]
[404801983,1770577844056,-161.48562146,0.00043835,120]
[404801984,1770577844065,-500.0,0.00043835,120]
[404801985,1770577844074,-500.0,0.00043835,120]
[404801986,1770577844083,-511.1855305,0.00043835,120]
[404801987,1770577844092,-469.55111245,0.00043835,120]
[404801988,1770577844101,-500.0,0.00043835,120]
[404801989,1770577844111,-500.0,0.00043835,120]
[404801990,1770577844120,-500.0,0.00043835,120]
[404801991,1770577844129,-500.0,0.00043835,120]
[404801992,1770577844139,-500.0,0.00043835,120]
[404801993,1770577844150,-500.0,0.00043835,120]
[404801994,1770577844159,-500.0,0.00043835,120]
[404801995,1770577844168,-500.0,0.00043835,120]
[404801996,1770577844177,-500.0,0.00043835,120]
[404801997,1770577844186,-537.37145192,0.00043835,120]
[404801998,1770577844197,-500.0,0.00043835,120]
[404801999,1770577844205,-500.0,0.00043835,120]
[404802000,1770577844212,-500.0,0.00043835,120]
[404802001,1770577844221,-500.0,0.00043835,120]
[404802002,1770577844228,-500.0,0.00043835,120]
[404802003,1770577844237,-500.0,0.00043835,120]
[404802004,1770577844245,-500.0,0.00043835,120]
[404802005,1770577844254,-500.0,0.00043835,120]
[404802006,1770577844263,-500.0,0.00043835,120]
[404802007,1770577844272,-500.0,0.00043835,120]
[404802008,1770577844282,-385.35803598,0.00043835,120]
[404802009,1770577844291,-500.0,0.00043835,120]